[Event "Masters Tournament (MTO)"]
[Site "Biel, Switzerland"]
[Date "2026.07.18"]
[Round "6.1"]
[White "Acs, Peter"]
[Black "Gloeckler, Christian"]
[Result "0-1"]
[TimeControl "100+30+30sec/move"]
[WhiteTitle "-"]
[BlackTitle "-"]
[WhiteFideId "708020"]
[BlackFideId "34608966"]
[WhiteElo "2561"]
[BlackElo "2506"]

1. e4 {[%clk 01:40:51]} {[%emt 00:00:07]} e5 {[%clk 01:40:55]} {[%emt
00:00:06]} 2. Nf3 {[%clk 01:41:08]} {[%emt 00:00:11]} Nc6 {[%clk 01:41:18]}
{[%emt 00:00:09]} 3. Bb5 {[%clk 01:41:12]} {[%emt 00:00:26]} a6 {[%clk
01:41:39]} {[%emt 00:00:09]} 4. Ba4 {[%clk 01:41:18]} {[%emt 00:00:24]} Nf6
{[%clk 01:42:01]} {[%emt 00:00:07]} 5. O-O {[%clk 01:41:10]} {[%emt 00:00:37]}
Be7 {[%clk 01:42:23]} {[%emt 00:00:09]} 6. d3 {[%clk 01:40:40]} {[%emt
00:01:01]} b5 {[%clk 01:42:45]} {[%emt 00:00:08]} 7. Bb3 {[%clk 01:41:01]}
{[%emt 00:00:08]} O-O {[%clk 01:43:05]} {[%emt 00:00:10]} 8. a3 {[%clk
01:39:28]} {[%emt 00:02:04]} d5 {[%clk 01:43:25]} {[%emt 00:00:10]} 9. exd5
{[%clk 01:30:26]} {[%emt 00:09:32]} Nxd5 {[%clk 01:43:46]} {[%emt 00:00:09]} 10.
Re1 {[%clk 01:30:38]} {[%emt 00:00:17]} Bg4 {[%clk 01:44:10]} {[%emt 00:00:06]}
11. Nbd2 {[%clk 01:20:49]} {[%emt 00:10:19]} Nf4 {[%clk 01:38:26]} {[%emt
00:06:14]} 12. h3 {[%clk 01:10:13]} {[%emt 00:11:07]} Bh5 {[%clk 01:38:47]}
{[%emt 00:00:09]} 13. Kh2 {[%clk 01:09:32]} {[%emt 00:01:11]} Qd7 {[%clk
01:29:54]} {[%emt 00:09:24]} 14. Rg1 {[%clk 00:54:27]} {[%emt 00:15:35]} Kh8
{[%clk 01:20:46]} {[%emt 00:09:39]} 15. g4 {[%clk 00:47:02]} {[%emt 00:07:54]}
Bg6 {[%clk 01:20:56]} {[%emt 00:00:20]} 16. Nf1 {[%clk 00:47:06]} {[%emt
00:00:26]} f5 {[%clk 01:18:33]} {[%emt 00:02:53]} 17. Bxf4 {[%clk 00:40:39]}
{[%emt 00:06:57]} exf4 {[%clk 01:18:18]} {[%emt 00:00:45]} 18. Qe2 {[%clk
00:38:47]} {[%emt 00:02:22]} Bd6 {[%clk 01:13:45]} {[%emt 00:05:04]} 19. Kh1
{[%clk 00:36:46]} {[%emt 00:02:31]} Rae8 {[%clk 01:12:06]} {[%emt 00:02:08]} 20.
Qd2 {[%clk 00:37:03]} {[%emt 00:00:13]} fxg4 {[%clk 01:10:27]} {[%emt
00:02:10]} 21. hxg4 {[%clk 00:37:18]} {[%emt 00:00:14]} Ne5 {[%clk 01:10:05]}
{[%emt 00:00:52]} 22. N1h2 {[%clk 00:36:57]} {[%emt 00:00:51]} Nxf3 {[%clk
01:09:10]} {[%emt 00:01:25]} 23. Nxf3 {[%clk 00:37:15]} {[%emt 00:00:12]} Bh5
{[%clk 01:07:53]} {[%emt 00:01:47]} 24. Nh2 {[%clk 00:29:45]} {[%emt 00:08:00]}
f3 {[%clk 01:06:24]} {[%emt 00:02:00]} 25. Qg5 {[%clk 00:30:08]} {[%emt
00:00:07]} Re5 {[%clk 01:05:47]} {[%emt 00:01:07]} 26. Qh4 {[%clk 00:29:28]}
{[%emt 00:01:09]} Bg6 {[%clk 01:05:49]} {[%emt 00:00:29]} 27. Rg3 {[%clk
00:24:40]} {[%emt 00:05:18]} Re2 {[%clk 01:02:01]} {[%emt 00:04:18]} 28. Rh3
{[%clk 00:23:33]} {[%emt 00:01:37]} Qc6 {[%clk 00:58:17]} {[%emt 00:04:13]} 29.
Rf1 {[%clk 00:20:23]} {[%emt 00:03:40]} a5 {[%clk 00:49:16]} {[%emt 00:09:32]}
30. d4 {[%clk 00:13:19]} {[%emt 00:07:34]} Qe4 {[%clk 00:46:02]} {[%emt
00:03:43]} 31. Rg1 {[%clk 00:08:44]} {[%emt 00:05:05]} Re1 {[%clk 00:43:01]}
{[%emt 00:03:31]} 32. Nf1 {[%clk 00:08:11]} {[%emt 00:01:03]} Qe2 {[%clk
00:41:02]} {[%emt 00:02:29]} 33. Ne3 {[%clk 00:07:26]} {[%emt 00:01:16]} Bf4
{[%clk 00:40:59]} {[%emt 00:00:33]} 34. Bd5 {[%clk 00:02:03]} {[%emt 00:05:53]}
Bxe3 {[%clk 00:39:21]} {[%emt 00:02:08]} 35. Rxf3 {[%clk 00:02:18]} {[%emt
00:00:14]} Rxg1+ {[%clk 00:39:45]} {[%emt 00:00:06]} 36. Kxg1 {[%clk 00:02:40]}
{[%emt 00:00:07]} Bf4 {[%clk 00:40:10]} {[%emt 00:00:06]} 37. g5 {[%clk
00:01:47]} {[%emt 00:01:23]} Qd1+ {[%clk 00:40:24]} {[%emt 00:00:16]} 38. Kg2
{[%clk 00:02:02]} {[%emt 00:00:15]} Qxd4 {[%clk 00:40:48]} {[%emt 00:00:06]}
0-1

[Event "Masters Tournament (MTO)"]
[Site "Biel, Switzerland"]
[Date "2026.07.18"]
[Round "6.2"]
[White "Cao, Qingfeng"]
[Black "Gopal, G.N."]
[Result "1/2-1/2"]
[TimeControl "100+30+30sec/move"]
[WhiteTitle "-"]
[BlackTitle "-"]
[WhiteFideId "8627568"]
[BlackFideId "5015693"]
[WhiteElo "2365"]
[BlackElo "2529"]

1. Nf3 {[%clk 01:40:51]} {[%emt 00:00:07]} c5 {[%clk 01:40:48]} {[%emt
00:00:14]} 2. c4 {[%clk 01:40:32]} {[%emt 00:00:48]} Nf6 {[%clk 01:40:52]}
{[%emt 00:00:27]} 3. g3 {[%clk 01:40:12]} {[%emt 00:00:50]} d5 {[%clk
01:29:52]} {[%emt 00:11:30]} 4. cxd5 {[%clk 01:40:28]} {[%emt 00:00:13]} Nxd5
{[%clk 01:30:19]} {[%emt 00:00:03]} 5. Bg2 {[%clk 01:39:20]} {[%emt 00:01:38]}
Nc6 {[%clk 01:29:59]} {[%emt 00:00:51]} 6. Nc3 {[%clk 01:38:09]} {[%emt
00:01:40]} Nc7 {[%clk 01:26:18]} {[%emt 00:04:12]} 7. a3 {[%clk 01:36:04]}
{[%emt 00:02:34]} g6 {[%clk 01:24:24]} {[%emt 00:02:24]} 8. h4 {[%clk
01:31:21]} {[%emt 00:05:13]} Bg4 {[%clk 01:21:39]} {[%emt 00:03:15]} 9. Qb3
{[%clk 01:29:41]} {[%emt 00:02:09]} Bg7 {[%clk 01:19:07]} {[%emt 00:03:04]} 10.
Qxb7 {[%clk 01:27:52]} {[%emt 00:02:18]} Bd7 {[%clk 01:18:51]} {[%emt
00:00:46]} 11. Qb3 {[%clk 01:28:05]} {[%emt 00:00:17]} Rb8 {[%clk 01:17:17]}
{[%emt 00:02:05]} 12. Qd1 {[%clk 01:28:12]} {[%emt 00:00:21]} h6 {[%clk
01:14:29]} {[%emt 00:03:20]} 13. d3 {[%clk 01:27:51]} {[%emt 00:00:50]} Ne6
{[%clk 01:10:18]} {[%emt 00:04:42]} 14. O-O {[%clk 01:23:28]} {[%emt 00:04:52]}
O-O {[%clk 01:10:37]} {[%emt 00:00:12]} 15. Nd2 {[%clk 01:23:41]} {[%emt
00:00:16]} Ne5 {[%clk 01:08:59]} {[%emt 00:02:08]} 16. Nc4 {[%clk 01:23:05]}
{[%emt 00:01:06]} Nxc4 {[%clk 01:06:12]} {[%emt 00:03:18]} 17. dxc4 {[%clk
01:23:26]} {[%emt 00:00:08]} Nd4 {[%clk 01:05:40]} {[%emt 00:01:03]} 18. Rb1
{[%clk 01:23:43]} {[%emt 00:00:14]} Bg4 {[%clk 00:58:17]} {[%emt 00:07:53]} 19.
Be3 {[%clk 01:23:42]} {[%emt 00:00:30]} a5 {[%clk 00:54:32]} {[%emt 00:04:16]}
20. Bxd4 {[%clk 01:21:05]} {[%emt 00:03:06]} cxd4 {[%clk 00:53:17]} {[%emt
00:01:46]} 21. Na4 {[%clk 01:21:19]} {[%emt 00:00:15]} e5 {[%clk 00:32:59]}
{[%emt 00:20:48]} 22. c5 {[%clk 01:19:40]} {[%emt 00:02:09]} Bf5 {[%clk
00:22:55]} {[%emt 00:10:35]} 23. Rc1 {[%clk 01:19:43]} {[%emt 00:00:27]} e4
{[%clk 00:23:15]} {[%emt 00:00:10]} 24. Nb6 {[%clk 01:19:52]} {[%emt 00:00:19]}
Rxb6 {[%clk 00:22:37]} {[%emt 00:01:10]} 25. cxb6 {[%clk 01:20:11]} {[%emt
00:00:11]} Qxb6 {[%clk 00:23:06]} 26. b4 {[%emt 00:27:32]} axb4 {[%clk
00:22:49]} 27. Qb3 {[%clk 00:49:18]} {[%emt 00:05:08]} Rb8 {[%clk 00:14:58]}
{[%emt 00:08:22]} 28. Qxb4 {[%clk 00:49:29]} {[%emt 00:00:19]} Qxb4 {[%clk
00:10:13]} {[%emt 00:05:15]} 29. axb4 {[%clk 00:49:57]} {[%emt 00:00:02]} Rxb4
{[%clk 00:07:35]} {[%emt 00:03:09]} 30. Rb1 {[%clk 00:49:39]} {[%emt 00:00:47]}
Rxb1 {[%clk 00:05:12]} {[%emt 00:02:53]} 31. Rxb1 {[%clk 00:50:06]} {[%emt
00:00:03]} Bf6 {[%clk 00:05:08]} {[%emt 00:00:35]} 32. Kh2 {[%clk 00:42:19]}
{[%emt 00:08:16]} d3 {[%clk 00:02:50]} {[%emt 00:02:49]} 33. Bh3 {[%clk
00:41:14]} {[%emt 00:01:34]} Bxh3 {[%clk 00:01:57]} {[%emt 00:01:23]} 34. Kxh3
{[%clk 00:41:36]} {[%emt 00:00:08]} dxe2 {[%clk 00:02:20]} {[%emt 00:00:08]} 35.
Re1 {[%clk 00:41:56]} {[%emt 00:00:08]} Bd4 {[%clk 00:01:14]} {[%emt 00:01:37]}
36. Rxe2 {[%clk 00:42:19]} {[%emt 00:00:06]} f5 {[%clk 00:01:42]} {[%emt
00:00:03]} 37. Rd2 {[%clk 00:35:36]} {[%emt 00:07:13]} e3 {[%clk 00:00:55]}
{[%emt 00:01:18]} 38. fxe3 {[%clk 00:36:01]} {[%emt 00:00:04]} Bxe3 {[%clk
00:01:24]} 39. Rd3 {[%emt 00:00:46]} Bc5 {[%clk 00:01:26]} 40. h5 {[%clk
00:36:19]} {[%emt 00:00:24]} gxh5 {[%clk 00:00:36]} {[%emt 00:01:21]} 41. Rd5
{[%clk 00:36:21]} {[%emt 00:00:27]} Be7 {[%clk 00:00:45]} {[%emt 00:00:21]} 42.
Rxf5 {[%clk 00:36:45]} {[%emt 00:00:06]} Bg5 {[%clk 00:01:13]} {[%emt
00:00:02]} 43. Kg2 {[%clk 00:36:00]} {[%emt 00:01:14]} h4 {[%clk 00:29:30]}
{[%emt 00:02:14]} 44. g4 {[%clk 01:06:05]} {[%emt 00:00:24]} Kg7 {[%clk
00:28:12]} {[%emt 00:01:49]} 45. Kf3 {[%clk 01:06:01]} {[%emt 00:00:34]} Kg6
{[%clk 00:28:13]} {[%emt 00:00:30]} 46. Rb5 {[%clk 01:06:21]} {[%emt 00:00:09]}
Bf6 {[%clk 00:20:49]} {[%emt 00:07:54]} 47. Ke4 {[%clk 01:06:18]} {[%emt
00:00:33]} Be7 {[%clk 00:17:05]} {[%emt 00:04:15]} 48. Rb7 {[%clk 01:00:21]}
{[%emt 00:06:27]} Bf6 {[%clk 00:16:31]} {[%emt 00:01:04]} 49. Rb5 {[%clk
00:57:43]} {[%emt 00:03:07]} Be7 {[%clk 00:16:09]} {[%emt 00:00:52]} 50. Ke5
{[%clk 00:57:07]} {[%emt 00:01:06]} Kg5 {[%clk 00:07:18]} {[%emt 00:09:22]} 51.
Ke6+ {[%clk 00:57:15]} {[%emt 00:00:22]} Kxg4 {[%clk 00:07:46]} {[%emt
00:00:03]} 52. Kxe7 {[%clk 00:57:38]} {[%emt 00:00:06]} h3 {[%clk 00:08:15]}
{[%emt 00:00:01]} 53. Kf6 {[%clk 00:57:58]} {[%emt 00:00:09]} h2 {[%clk
00:08:30]} {[%emt 00:00:16]} 54. Rb1 {[%clk 00:58:23]} {[%emt 00:00:05]} Kg3
{[%clk 00:07:45]} {[%emt 00:01:15]} 55. Kf5 {[%clk 00:58:06]} {[%emt 00:00:47]}
Kg2 {[%clk 00:08:11]} {[%emt 00:00:05]} 56. Kg4 {[%clk 00:58:30]} {[%emt
00:00:05]} h5+ {[%clk 00:08:01]} {[%emt 00:00:41]} 57. Kxh5 {[%clk 00:58:53]}
{[%emt 00:00:07]} h1=R+ {[%clk 00:08:27]} {[%emt 00:00:03]} 58. Rxh1 {[%clk
00:59:20]} Kxh1 {[%clk 00:08:23]} {[%emt 00:00:06]} 1/2-1/2

[Event "Masters Tournament (MTO)"]
[Site "Biel, Switzerland"]
[Date "2026.07.18"]
[Round "6.3"]
[White "Alexakis, Dimitris"]
[Black "Liu, Bei"]
[Result "1/2-1/2"]
[TimeControl "100+30+30sec/move"]
[WhiteTitle "-"]
[BlackTitle "-"]
[WhiteFideId "4277023"]
[BlackFideId "8603596"]
[WhiteElo "2525"]
[BlackElo "2175"]

1. e4 {[%clk 01:39:57]} {[%emt 00:00:03]} c5 {[%clk 01:40:50]} {[%emt
00:00:11]} 2. Nf3 {[%clk 01:40:09]} {[%emt 00:00:18]} d6 {[%clk 01:41:11]}
{[%emt 00:00:09]} 3. d4 {[%clk 01:40:00]} {[%emt 00:00:39]} cxd4 {[%clk
01:41:35]} {[%emt 00:00:06]} 4. Nxd4 {[%clk 01:40:24]} {[%emt 00:00:07]} Nf6
{[%clk 01:42:01]} {[%emt 00:00:04]} 5. Nc3 {[%clk 01:40:45]} {[%emt 00:00:09]}
a6 {[%clk 01:42:26]} {[%emt 00:00:05]} 6. h3 {[%clk 01:41:08]} {[%emt
00:00:07]} e6 {[%clk 01:42:11]} {[%emt 00:00:45]} 7. g4 {[%clk 01:41:26]}
{[%emt 00:00:12]} d5 {[%clk 01:42:25]} {[%emt 00:00:17]} 8. exd5 {[%clk
01:39:27]} {[%emt 00:02:29]} Nxd5 {[%clk 01:42:38]} {[%emt 00:00:17]} 9. Nde2
{[%clk 01:39:27]} {[%emt 00:00:29]} Nxc3 {[%clk 01:42:54]} {[%emt 00:00:14]} 10.
Qxd8+ {[%clk 01:39:45]} {[%emt 00:00:12]} Kxd8 {[%clk 01:43:21]} {[%emt
00:00:03]} 11. Nxc3 {[%clk 01:39:29]} {[%emt 00:00:46]} Bd7 {[%clk 01:43:35]}
{[%emt 00:00:16]} 12. h4 {[%clk 01:31:43]} {[%emt 00:08:16]} Bc6 {[%clk
01:38:00]} {[%emt 00:06:05]} 13. Rh3 {[%clk 01:32:00]} {[%emt 00:00:12]} Be7
{[%clk 01:38:04]} {[%emt 00:00:26]} 14. Bf4 {[%clk 01:23:33]} {[%emt 00:08:57]}
Nd7 {[%clk 01:37:18]} {[%emt 00:01:16]} 15. O-O-O {[%clk 01:18:14]} {[%emt
00:05:49]} Ke8 {[%clk 01:36:12]} {[%emt 00:01:35]} 16. g5 {[%clk 01:17:05]}
{[%emt 00:01:39]} Rc8 {[%clk 01:30:35]} {[%emt 00:06:08]} 17. h5 {[%clk
01:06:31]} {[%emt 00:11:05]} h6 {[%clk 01:18:06]} {[%emt 00:12:59]} 18. g6
{[%clk 00:38:05]} {[%emt 00:28:56]} fxg6 {[%clk 01:16:21]} {[%emt 00:02:15]} 19.
Bd3 {[%clk 00:35:20]} {[%emt 00:03:14]} gxh5 {[%clk 01:13:48]} {[%emt
00:03:03]} 20. Bg6+ {[%clk 00:33:48]} {[%emt 00:02:02]} Kf8 {[%clk 01:14:10]}
{[%emt 00:00:08]} 21. Rxh5 {[%clk 00:27:10]} {[%emt 00:07:08]} Nf6 {[%clk
01:12:37]} {[%emt 00:02:02]} 22. Re5 {[%clk 00:15:49]} {[%emt 00:11:51]} Be8
{[%clk 01:09:31]} {[%emt 00:03:36]} 23. Bxe8 {[%clk 00:15:55]} {[%emt
00:00:24]} Rxe8 {[%clk 01:09:02]} {[%emt 00:00:59]} 24. Rxe6 {[%clk 00:16:16]}
{[%emt 00:00:10]} Bc5 {[%clk 01:07:33]} {[%emt 00:02:00]} 25. Rxe8+ {[%clk
00:12:25]} {[%emt 00:04:20]} Kxe8 {[%clk 01:07:20]} {[%emt 00:00:42]} 26. f3
{[%clk 00:12:45]} {[%emt 00:00:10]} h5 {[%clk 01:01:00]} {[%emt 00:06:50]} 27.
Kd2 {[%clk 00:09:25]} {[%emt 00:03:50]} h4 {[%clk 00:51:31]} {[%emt 00:09:58]}
28. Rh1 {[%clk 00:06:44]} {[%emt 00:03:11]} Rh5 {[%clk 00:50:49]} {[%emt
00:01:11]} 29. Be3 {[%clk 00:04:41]} {[%emt 00:02:34]} Bd6 {[%clk 00:43:28]}
{[%emt 00:07:51]} 30. Ke2 {[%clk 00:03:01]} {[%emt 00:02:10]} Kf7 {[%clk
00:40:37]} {[%emt 00:03:21]} 31. f4 {[%clk 00:02:06]} {[%emt 00:01:25]} Ng4
{[%clk 00:35:41]} {[%emt 00:05:26]} 32. Bd2 {[%clk 00:01:05]} {[%emt 00:01:31]}
Be7 {[%clk 00:32:03]} {[%emt 00:04:07]} 33. Kf3 {[%clk 00:01:14]} {[%emt
00:00:21]} Nh6 {[%clk 00:32:31]} {[%emt 00:00:02]} 34. Be1 {[%clk 00:00:37]}
{[%emt 00:01:07]} g6 {[%clk 00:32:08]} {[%emt 00:00:53]} 35. Ne4 {[%clk
00:00:41]} {[%emt 00:00:26]} Nf5 {[%clk 00:25:59]} {[%emt 00:06:39]} 36. Bc3
{[%clk 00:00:56]} {[%emt 00:00:16]} Nh6 {[%clk 00:17:18]} {[%emt 00:09:11]} 37.
Nf2 {[%clk 00:00:38]} {[%emt 00:00:48]} g5 {[%clk 00:12:55]} {[%emt 00:04:52]}
38. fxg5 {[%clk 00:00:35]} {[%emt 00:00:34]} Bxg5 {[%clk 00:13:23]} {[%emt
00:00:02]} 39. Ng4 {[%clk 00:00:42]} {[%emt 00:00:22]} Be7 {[%clk 00:11:38]}
{[%emt 00:02:15]} 40. Ne5+ {[%clk 00:00:54]} {[%emt 00:00:19]} Ke8 {[%clk
00:01:05]} {[%emt 00:11:03]} 41. Ng6 {[%clk 00:21:21]} {[%emt 00:10:03]} Bd8
{[%clk 00:29:18]} {[%emt 00:02:15]} 42. Re1+ {[%clk 00:12:08]} {[%emt
00:09:44]} Kd7 {[%clk 00:27:12]} {[%emt 00:02:36]} 43. Nf4 {[%clk 00:09:54]}
{[%emt 00:02:44]} Rf5 {[%clk 00:26:41]} {[%emt 00:00:58]} 44. Rd1+ {[%clk
00:06:10]} {[%emt 00:04:18]} Kc8 {[%clk 00:26:00]} {[%emt 00:01:11]} 45. Ke4
{[%clk 00:06:33]} {[%emt 00:00:07]} Rf7 {[%emt 00:06:02]} 46. Rd5 {[%clk
00:03:11]} Ng4 {[%clk 00:22:24]} {[%emt 00:02:25]} 47. Rc5+ {[%clk 00:02:42]}
{[%emt 00:01:00]} Kd7 {[%clk 00:20:19]} {[%emt 00:02:35]} 48. Rd5+ {[%clk
00:02:24]} {[%emt 00:00:48]} Kc8 {[%clk 00:20:25]} {[%emt 00:00:23]} 49. Rc5+
{[%clk 00:02:06]} {[%emt 00:00:48]} Kd7 {[%clk 00:20:50]} {[%emt 00:00:05]} 50.
Rd5+ {[%clk 00:01:24]} {[%emt 00:01:11]} 1/2-1/2

[Event "Masters Tournament (MTO)"]
[Site "Biel, Switzerland"]
[Date "2026.07.18"]
[Round "6.4"]
[White "Shukhman, Anna"]
[Black "Dong, Hongfu"]
[Result "1/2-1/2"]
[TimeControl "100+30+30sec/move"]
[WhiteTitle "-"]
[BlackTitle "-"]
[WhiteFideId "54180058"]
[BlackFideId "8626960"]
[WhiteElo "2443"]
[BlackElo "2353"]

1. e4 {[%clk 01:40:58]} c5 {[%clk 01:40:53]} {[%emt 00:00:08]} 2. Nf3 {[%clk
01:41:24]} {[%emt 00:00:03]} e6 {[%clk 01:41:15]} {[%emt 00:00:09]} 3. d4
{[%clk 01:41:49]} {[%emt 00:00:04]} cxd4 {[%clk 01:41:42]} {[%emt 00:00:04]} 4.
Nxd4 {[%clk 01:42:15]} {[%emt 00:00:06]} a6 {[%clk 01:42:06]} {[%emt 00:00:04]}
5. Bd3 {[%clk 01:40:23]} {[%emt 00:02:21]} Bc5 {[%clk 01:42:27]} {[%emt
00:00:09]} 6. Nb3 {[%clk 01:40:51]} {[%emt 00:00:03]} Ba7 {[%clk 01:42:51]}
{[%emt 00:00:05]} 7. Nc3 {[%clk 01:41:18]} {[%emt 00:00:03]} Ne7 {[%clk
01:42:53]} {[%emt 00:00:28]} 8. Bf4 {[%clk 01:41:33]} {[%emt 00:00:15]} Nbc6
{[%clk 01:24:43]} {[%emt 00:18:41]} 9. Bd6 {[%clk 01:28:26]} {[%emt 00:13:37]}
Bb8 {[%clk 01:15:15]} {[%emt 00:09:57]} 10. Be2 {[%clk 01:26:17]} {[%emt
00:02:39]} f5 {[%clk 01:07:45]} {[%emt 00:08:01]} 11. Bh5+ {[%clk 01:16:57]}
{[%emt 00:09:50]} g6 {[%clk 01:04:57]} {[%emt 00:03:18]} 12. Bf3 {[%clk
01:17:22]} {[%emt 00:00:04]} Ne5 {[%clk 01:01:54]} {[%emt 00:03:34]} 13. Be2
{[%clk 01:13:58]} {[%emt 00:03:54]} Nf7 {[%clk 00:56:40]} {[%emt 00:05:43]} 14.
Bxb8 {[%clk 01:13:55]} {[%emt 00:00:33]} Rxb8 {[%clk 00:57:04]} {[%emt
00:00:06]} 15. Qd2 {[%clk 01:08:09]} {[%emt 00:06:16]} b5 {[%clk 00:52:55]}
{[%emt 00:04:40]} 16. exf5 {[%clk 01:04:29]} {[%emt 00:04:11]} gxf5 {[%clk
00:51:14]} {[%emt 00:02:10]} 17. O-O-O {[%clk 01:03:04]} {[%emt 00:01:55]} Qc7
{[%clk 00:46:07]} {[%emt 00:05:37]} 18. Bh5 {[%clk 00:56:25]} {[%emt 00:07:09]}
O-O {[%clk 00:36:05]} {[%emt 00:10:32]} 19. g4 {[%clk 00:55:41]} {[%emt
00:01:14]} f4 {[%clk 00:21:53]} {[%emt 00:14:43]} 20. Ne4 {[%clk 00:51:49]}
{[%emt 00:04:23]} d5 {[%clk 00:22:09]} {[%emt 00:00:14]} 21. Nf6+ {[%clk
00:42:52]} {[%emt 00:09:26]} Kg7 {[%clk 00:22:31]} {[%emt 00:00:08]} 22. g5
{[%clk 00:43:19]} {[%emt 00:00:03]} Nxg5 {[%clk 00:22:45]} {[%emt 00:00:17]} 23.
Ne8+ {[%clk 00:42:13]} {[%emt 00:01:36]} Rxe8 {[%clk 00:23:13]} {[%emt
00:00:01]} 24. Bxe8 {[%clk 00:42:38]} {[%emt 00:00:05]} Ne4 {[%clk 00:23:25]}
{[%emt 00:00:18]} 25. Qe2 {[%clk 00:41:17]} {[%emt 00:01:51]} Nf6 {[%clk
00:23:35]} {[%emt 00:00:20]} 26. Rhg1+ {[%clk 00:40:27]} {[%emt 00:01:20]} Kf8
{[%clk 00:22:33]} {[%emt 00:01:32]} 27. Bh5 {[%clk 00:40:08]} {[%emt 00:00:49]}
e5 {[%clk 00:22:54]} {[%emt 00:00:10]} 28. Kb1 {[%clk 00:22:52]} {[%emt
00:17:47]} Bf5 {[%clk 00:22:53]} {[%emt 00:00:30]} 29. Rc1 {[%clk 00:21:42]}
{[%emt 00:01:40]} Rd8 {[%clk 00:19:27]} {[%emt 00:03:56]} 30. h3 {[%clk
00:20:22]} {[%emt 00:01:51]} Bxh3 {[%clk 00:14:10]} {[%emt 00:05:48]} 31. Qf3
{[%clk 00:20:31]} {[%emt 00:00:20]} Bf5 {[%clk 00:12:13]} {[%emt 00:02:27]} 32.
Qh1 {[%clk 00:18:42]} {[%emt 00:02:19]} Qd6 {[%clk 00:12:06]} {[%emt 00:00:38]}
33. Be2 {[%clk 00:17:47]} {[%emt 00:01:25]} Bg6 {[%clk 00:11:42]} {[%emt
00:00:54]} 34. Qh3 {[%clk 00:14:49]} {[%emt 00:03:27]} Kf7 {[%clk 00:11:14]}
{[%emt 00:00:58]} 35. Ka1 {[%clk 00:12:35]} {[%emt 00:02:44]} d4 {[%clk
00:10:30]} {[%emt 00:01:14]} 36. f3 {[%clk 00:12:17]} {[%emt 00:00:48]} Nf5
{[%clk 00:07:31]} {[%emt 00:03:29]} 37. Bd3 {[%clk 00:11:06]} {[%emt 00:01:41]}
Ng3 {[%clk 00:06:56]} {[%emt 00:01:05]} 38. Nd2 {[%clk 00:09:59]} {[%emt
00:01:38]} Qe6 {[%clk 00:05:43]} {[%emt 00:01:42]} 39. Qh4 {[%clk 00:06:56]}
{[%emt 00:03:33]} Rc8 {[%clk 00:05:37]} {[%emt 00:00:37]} 40. Rce1 {[%clk
00:02:48]} {[%emt 00:04:37]} Qd6 {[%clk 00:03:01]} {[%emt 00:03:06]} 41. Qg5
{[%clk 00:25:27]} {[%emt 00:07:50]} Rc5 {[%clk 00:21:01]} {[%emt 00:12:31]} 42.
Nb3 {[%clk 00:18:43]} {[%emt 00:07:14]} Rd5 {[%clk 00:21:14]} {[%emt 00:00:18]}
43. Be4 {[%clk 00:18:56]} {[%emt 00:00:17]} Nfxe4 {[%clk 00:21:38]} {[%emt
00:00:06]} 44. fxe4 {[%clk 00:19:22]} {[%emt 00:00:04]} Qd8 {[%clk 00:22:04]}
{[%emt 00:00:04]} 45. Rxg3 {[%clk 00:18:10]} {[%emt 00:01:42]} fxg3 {[%clk
00:22:21]} {[%emt 00:00:13]} 46. Rf1+ {[%clk 00:18:12]} {[%emt 00:00:27]} Kg8
{[%clk 00:21:47]} {[%emt 00:01:01]} 47. Qxg3 {[%clk 00:18:33]} {[%emt
00:00:12]} Rd7 {[%clk 00:20:36]} {[%emt 00:01:40]} 48. Qxe5 {[%clk 00:18:50]}
{[%emt 00:00:15]} Qe7 {[%clk 00:20:50]} {[%emt 00:00:15]} 49. Qg3 {[%clk
00:16:10]} {[%emt 00:03:10]} Rd8 {[%clk 00:17:45]} {[%emt 00:03:35]} 50. Re1
{[%clk 00:15:57]} {[%emt 00:00:43]} Qb4 {[%clk 00:17:38]} {[%emt 00:00:36]} 51.
Rd1 {[%clk 00:12:03]} {[%emt 00:04:25]} Qc4 {[%clk 00:17:39]} {[%emt 00:00:29]}
52. Kb1 {[%clk 00:10:04]} {[%emt 00:02:29]} Qe2 {[%clk 00:17:07]} {[%emt
00:01:02]} 53. Re1 {[%clk 00:10:31]} {[%emt 00:00:03]} d3 {[%clk 00:16:50]}
{[%emt 00:00:47]} 54. Rxe2 {[%clk 00:05:43]} {[%emt 00:05:18]} dxe2 {[%clk
00:17:19]} {[%emt 00:00:01]} 55. Nc1 {[%clk 00:06:08]} {[%emt 00:00:05]} Rd1
{[%clk 00:17:43]} {[%emt 00:00:06]} 56. Qb8+ {[%clk 00:06:00]} {[%emt
00:00:38]} Kg7 {[%clk 00:17:50]} {[%emt 00:00:23]} 57. Qe5+ {[%clk 00:03:51]}
{[%emt 00:02:39]} Kf7 {[%clk 00:17:16]} {[%emt 00:01:04]} 58. Qf4+ {[%clk
00:04:06]} {[%emt 00:00:15]} Ke8 {[%clk 00:16:29]} {[%emt 00:01:16]} 59. Qb8+
{[%clk 00:04:01]} {[%emt 00:00:36]} Ke7 {[%clk 00:16:36]} {[%emt 00:00:22]} 60.
Qa7+ {[%clk 00:04:11]} {[%emt 00:00:22]} Ke8 {[%clk 00:16:54]} {[%emt
00:00:11]} 61. Qb8+ {[%clk 00:04:10]} {[%emt 00:00:32]} Ke7 {[%clk 00:17:18]}
{[%emt 00:00:05]} 62. Qa7+ {[%clk 00:04:35]} {[%emt 00:00:05]} Ke8 {[%clk
00:17:10]} {[%emt 00:00:06]} 1/2-1/2